[Event "10th Amsterdam Science Park 2022"]
[Site "Amsterdam"]
[Date "2022.07.22"]
[Round "5.3"]
[White "De Winter, Arthur"]
[Black "Stolwijk, Colin"]
[Result "1-0"]
[ECO "B11"]
[WhiteElo "2150"]
[BlackElo "2277"]
[Annotator "TA"]
[PlyCount "95"]
[EventDate "2022.07.18"]
[EventCountry "NED"]
[SourceTitle "playchess.com"]
[Source "ChessBase"]
[SourceQuality "1"]
[TimeControl "5400+30"]

{[%evp 11,95,7,7,12,15,10,14,15,18,22,36,31,24,39,47,35,50,23,27,24,33,19,6,-14,0,0,35,20,48,57,33,5,0,0,0,0,0,0,0,0,0,0,27,20,22,-29,48,-2,58,64,65,68,67,66,65,65,71,65,82,46,58,47,288,258,258,258,258,258,418,417,608,608,598,584,584,521,29968,29970,29968,29968,29966,29967,11126,11126,5074,4137]} 1. e4 {[%emt 0:00:03]} c6 {[%emt 0:00:04]} 2. Nf3 {[%emt 0:00:03]} d5 {[%emt 0:00:05]} 3. Nc3 {[%emt 0:00:03]} Bg4 {[%emt 0:00:11]} 4. h3 {[%emt 0:00:08]} Bxf3 {[%emt 0:00:04]} 5. Qxf3 {[%emt 0:00:03]} e6 {[%emt 0:00:13]} 6. d4 {[%emt 0:00:12]} Nf6 {[%emt 0:00:11]} 7. exd5 {[%emt 0:00:13] B11: Caro-Kann: Two Knights Variation.} cxd5 {[%emt 0:01:34]} 8. Bd3 {[%emt 0:00:07]} Nc6 {[%emt 0:02:45]} 9. Ne2 {[%emt 0:00:35] The position is equal.} Nb4 {[%emt 0:05:14]} 10. Bb5+ {[%emt 0:00:41]} Nd7 {[%emt 0:00:02]} 11. Ba4 {[%emt 0:00:09]} b5 {[%emt 0:08:46]} 12. Bb3 {[%emt 0:01:01] [#]} Be7 $146 {[%emt 0:08:19]} ({Predecessor:} 12... Nc6 13. c3 Bd6 14. O-O Qf6 15. Qd3 Rb8 16. f4 g6 17. g4 h5 18. g5 Qd8 {0-1 (50) Iglesias Ferreira,A (2146)-Buendia Pinar,A (2295) La Roda 2022}) 13. O-O {[%emt 0:05:35]} Nf6 {[%emt 0:05:51]} 14. c3 {[%emt 0:16:16]} Nc6 {[%emt 0:00:07]} 15. Bc2 {[%emt 0:00:34]} O-O {[%emt 0:09:14]} 16. g4 {[%emt 0:12:37]} b4 {[%emt 0:13:26]} 17. Bf4 {[%emt 0:06:13]} Rc8 {[%emt 0:05:24]} 18. Kg2 {[%emt 0:20:48]} a5 {[%emt 0:02:53]} 19. h4 {[%emt 0:09:12]} (19. Qd3 $5 {[%cal Rg4g5]} g6 20. Ba4 $14) 19... Nd7 {[%emt 0:06:16][%cal Bf6d7,Bd7e5,Be5g4][%mdl 32]} 20. Qd3 {[%emt 0:03:32][%csl Gc2][%cal Rd3h7]} g6 {[%emt 0:00:13]} 21. h5 {[%emt 0:00:27]} e5 {[%emt 0:07:51]} 22. hxg6 {[%emt 0:13:07]} fxg6 {[%emt 0:05:07]} 23. dxe5 {[%emt 0:00:58]} Ndxe5 {[%emt 0:00:07]} 24. Qe3 {[%emt 0:00:51]} Bf6 {[%emt 0:01:14]} ({Resist} 24... Qd7 25. Bxe5 Bc5 26. Qxc5 $16) 25. Rad1 {[%emt 0:01:48]} Qd7 $1 {[%emt 0:02:30]} 26. Qh3 {[%emt 0:04:20]} Qxg4+ {[%emt 0:06:36]} 27. Qxg4 {[%emt 0:00:03]} Nxg4 {[%emt 0:00:04]} 28. Rxd5 {[%emt 0:00:37]} (28. Bb3 $142) 28... Bg7 {[%emt 0:01:25]} (28... bxc3 $11 29. bxc3 {[#]} Nb4 $1) 29. Bg3 {[%emt 0:01:59]} (29. Rc5 $14 Rfe8 30. Re1) 29... Rfe8 {[%emt 0:00:53] [#]} ({Better is} 29... bxc3 $11 30. Rg5 Nge5 31. Bb3+ Kh8 32. bxc3 Rce8) 30. Bb3 $1 $14 {[%emt 0:01:17][%cal Bc2b3,Bb3c4,Bc4a6,Ba6b5,Bb5a4,Ba4d1][%mdl 32] Black must now prevent Rd8+.} a4 {[%emt 0:03:10]} (30... bxc3 31. Nxc3) 31. Bc4 {[%emt 0:00:17] Rc5+ is the strong threat.} Kh8 $1 {[%emt 0:00:06]} 32. Ba6 {[%emt 0:01:01]} Rcd8 {[%emt 0:02:04]} 33. Rxd8 {[%emt 0:00:38]} Rxd8 {[%emt 0:00:01]} 34. Bb5 {[%emt 0:00:17][%csl LRa4,LRc6] This bishop pair is nice.} Nce5 {[%emt 0:01:44]} 35. Bxa4 {[%emt 0:00:52]} Rd2 {[%emt 0:00:02][%csl LRb2,LRe2]} 36. Rd1 {[%emt 0:00:15]} Rxd1 {[%emt 0:02:58] Black cannot hold the game after this.} (36... bxc3 $14 37. b4 (37. bxc3 Rxe2 38. Rd8+ Bf8 $11) 37... Nc4 38. Rxd2 cxd2) 37. Bxd1 $18 {[%emt 0:00:05]} Nd3 {[%emt 0:00:41]} 38. cxb4 {[%emt 0:02:33]} Nxb4 {[%emt 0:00:35]} 39. a3 {[%emt 0:00:00]} Nd5 {[%emt 0:01:05]} (39... Nd3 40. b4 Be5) 40. b4 {[%emt 0:00:08] And now Bb3 would win.} Bb2 {[%emt 0:00:51]} (40... Be5 $142 41. Bb3 Bxg3 42. fxg3 Nc7) 41. Bb3 {[%emt 0:00:00]} Bxa3 {[%emt 0:00:00]} 42. Bxd5 {[%emt 0:00:00]} Bxb4 {[%emt 0:00:00]} 43. Be6 {[%emt 0:00:00]} Nf6 {[%emt 0:00:00]} 44. Be5 {[%emt 0:00:00][%cal Re5f6]} Kg7 {[%emt 0:00:00]} 45. Nf4 {[%emt 0:00:00]} Be7 {[%emt 0:00:00]} 46. Nd5 {[%emt 0:00:00]} Bd8 {[%emt 0:00:00]} 47. f4 {[%emt 0:00:00] Threatening mate with Kg3.} h6 {[%emt 0:00:00]} 48. Kh3 {[%emt 0:00:00] Weighted Error Value: White=0.07 (flawless) /Black=0.44} 1-0

[Event "10th Amsterdam Science Park 2022"]
[Site "Amsterdam"]
[Date "2022.07.22"]
[Round "5.4"]
[White "Van der Poel, Henk"]
[Black "Vroombout, Enrico"]
[Result "1-0"]
[ECO "B23"]
[WhiteElo "2210"]
[BlackElo "2125"]
[Annotator "TA"]
[PlyCount "101"]
[EventDate "2022.07.18"]
[EventCountry "NED"]
[SourceTitle "playchess.com"]
[Source "ChessBase"]
[SourceQuality "1"]
[TimeControl "5400+30"]

{[%evp 9,101,33,42,41,52,54,56,49,59,52,59,58,74,70,74,78,100,50,50,50,64,50,63,50,58,23,57,64,57,24,47,25,25,25,26,17,53,80,79,18,79,18,120,127,127,127,127,127,161,161,161,161,161,161,421,234,244,1,37,-46,371,362,512,273,431,431,1149,1150,883,606,553,0,1155,1185,1149,1137,1031,1038,1017,973,973,629,1321,757,747,717,804,754,847,854,866,887,1261,1189]} 1. e4 {[%emt 0:00:10]} c5 {[%emt 0:00:03]} 2. Nc3 {[%emt 0:00:22]} Nc6 {[%emt 0:00:03]} 3. Bb5 {[%emt 0:00:28]} g6 {[%emt 0:00:33]} 4. Bxc6 {[%emt 0:00:40]} dxc6 {[%emt 0:00:10]} 5. f4 {[%emt 0:00:59]} Bg7 {[%emt 0:04:11]} 6. Nf3 {[%emt 0:00:41] B23: Closed Sicilian: Lines without g3.} Nh6 {[%emt 0:00:44][%cal Oe7e5]} 7. d3 {[%emt 0:01:13]} b6 {[%emt 0:04:26][%cal Oc5c4]} 8. O-O {[%emt 0:01:45] White is slightly better.} f6 {[%emt 0:06:09]} 9. Qe1 {[%emt 0:05:19]} Nf7 {[%emt 0:07:31]} 10. Be3 {[%emt 0:08:08] [#]} e5 $146 {[%emt 0:03:49]} ({Predecessor:} 10... O-O 11. Qg3 e5 12. Ne2 Qe7 13. fxe5 fxe5 14. h4 Be6 15. Ng5 Nd6 16. Nxe6 Qxe6 {½-½ (42) Keller,P (1947)-Koop,T (2090) Xanten 2011}) 11. f5 {[%emt 0:17:32]} g5 {[%emt 0:36:11]} 12. Nd2 {[%emt 0:08:28] White is more active.} Nd6 {[%emt 0:01:41]} 13. a4 {[%emt 0:01:52]} (13. a3 $16) 13... a5 $1 $14 {[%emt 0:00:35]} 14. Ne2 {[%emt 0:09:06]} Ba6 {[%emt 0:00:22]} 15. b3 {[%emt 0:00:38]} Qc7 {[%emt 0:03:49]} 16. Qf2 {[%emt 0:10:00]} Bf8 {[%emt 0:03:59]} 17. Nc3 {[%emt 0:00:40]} O-O-O {[%emt 0:08:04]} 18. Nd1 {[%emt 0:00:21][%cal Ob3b4]} Kb7 {[%emt 0:04:09]} 19. Nb2 {[%emt 0:00:22]} Nf7 {[%emt 0:00:52]} 20. Rfd1 {[%emt 0:03:00]} h5 {[%emt 0:00:13]} 21. Ndc4 {[%emt 0:00:53]} Nh6 {[%emt 0:00:33]} 22. h3 {[%emt 0:02:42] Against Ng4. White wants to play c3.} g4 {[%emt 0:01:39][%cal Oh5h4]} 23. Kf1 {[%emt 0:04:18]} h4 {[%emt 0:06:00]} 24. Ke2 {[%emt 0:05:54]} ({Better is} 24. Qxh4 $16 gxh3 25. gxh3 (25. Qxf6 Be7 $11)) 24... Qg7 {[%emt 0:03:36]} (24... g3 $11 {keeps the balance.} 25. Qf3 Nf7) 25. Rh1 {[%emt 0:02:06]} (25. b4 $16) 25... Nf7 {[%emt 0:00:36] [#]} (25... g3 $1 $11 {remains equal.} 26. Qf3 Nf7) 26. hxg4 $1 $16 {[%emt 0:01:28]} Qxg4+ {[%emt 0:00:10]} 27. Qf3 {[%emt 0:00:08]} Qg8 {[%emt 0:01:11]} 28. Rh2 {[%emt 0:02:10]} Ng5 {[%emt 0:01:20]} 29. Qf2 {[%emt 0:00:56]} Rd7 {[%emt 0:00:51]} 30. Rah1 {[%emt 0:00:33]} (30. Rxh4 $6 Rxh4 31. Qxh4 Rh7 $16) 30... Rg7 {[%emt 0:00:41][%cal Oh4h3]} 31. Kd1 {[%emt 0:02:48]} (31. Rxh4 Rxh4 32. Qxh4 (32. Rxh4 Nxe4 33. Qf3 Nc3+ 34. Kf2 Rh7 $11) 32... Rh7 $16) 31... b5 $2 {[%emt 0:00:30]} (31... Be7 32. Rxh4 Rxh4 33. Rxh4 (33. Qxh4 Nf7 $16) 33... Bd8) 32. Nd2 {[%emt 0:02:27]} (32. Nxa5+ $142 Ka8 33. Bxc5) 32... c4 {[%emt 0:00:12]} 33. Ba7 $2 {[%emt 0:00:49]} (33. dxc4 $6 bxc4 34. Bxg5 (34. bxc4 Rd7 $16) (34. Rxh4 Rxh4 35. Rxh4 c3 $11) (34. Nbxc4 Bxc4 35. Bxg5 Rd7 $16) 34... Rd7 35. Nbxc4 (35. Bxf6 c3 $11) 35... Bxc4 $16) (33. Rxh4 Rxh4 34. Rxh4 (34. Qxh4 $2 c3 $19) 34... c3 $17) (33. bxc4 $18 Bb4 34. cxb5 (34. Rxh4 Rxh4 35. Rxh4 Nf7 $18) (34. Ba7 Ka8 $16) 34... cxb5 35. Nb3 (35. Rxh4 Rxh4 36. Rxh4 Nf7 $18) (35. Ba7 Ka8 $16)) 33... Ka8 $11 {[%emt 0:00:07] [#]} 34. axb5 {[%emt 0:01:11]} (34. Qb6 $1 $14 Rxa7 35. Qxc6+ Kb8 36. axb5) 34... Rxa7 $4 {[%emt 0:00:19][%mdl 8192] White now steadily converts the win.} (34... cxb5 $15 {keeps the upper hand.} 35. Bc5 c3 36. Bxf8 Qxf8) 35. bxa6 $18 {[%emt 0:02:25]} c3 {[%emt 0:01:10]} (35... cxd3 $142 36. Qb6 (36. cxd3 Rxa6 37. Rxh4 Rxh4 $18) (36. Rxh4 Rxh4 37. Rxh4 dxc2+ 38. Kxc2 Rxa6 $16) (36. Nxd3 Rxa6 37. Rxh4 Rxh4 $18) 36... dxc2+ 37. Kxc2 Be7 38. Qxc6+ Kb8 39. Rxh4 Rxh4 40. Qb6+ (40. Rxh4 Rc7 $16) 40... Ka8 41. Rxh4 Qe8) 36. Nbc4 {[%emt 0:00:13]} cxd2 {[%emt 0:00:14]} (36... Rxa6 {keeps fighting.} 37. Nb6+ Kb7) 37. Qb6 {[%emt 0:00:19][%cal Rb6d8]} Bb4 {[%emt 0:00:44]} (37... Rf7 $142 38. Qxc6+ Ka7 39. Qb6+ Ka8 40. Qc6+ (40. Rxh4 Nxe4 41. Qc6+ Ka7 $18) 40... Ka7 41. Rxh4 Rxh4 42. Qb6+ (42. Rxh4 Bb4 $16) 42... Ka8 43. Qd8+ (43. Rxh4 Bb4 $16) 43... Ka7 44. Rxh4 Qg7 45. Qb6+ (45. Kxd2 Rc7 $16) (45. Nxd2 Rd7 $16) (45. Qxa5 Nf3 $16) 45... Ka8 46. Nxa5 Qg8 47. Kxd2 Bg7 48. Qc6+ Ka7 49. Qc5+ Kxa6) 38. Qxc6+ {[%emt 0:02:41]} Kb8 {[%emt 0:00:04]} 39. Qb6+ {[%emt 0:00:13]} Ka8 {[%emt 0:00:05][%cal Og5e6]} 40. Qc6+ {[%emt 0:01:09]} (40. c3 $142) 40... Kb8 {[%emt 0:00:03][%cal Og5e6]} 41. Qb5+ {[%emt 0:00:00] White is clearly winning.} Kc8 {[%emt 0:00:00]} 42. Nb6+ {[%emt 0:00:00]} Kd8 {[%emt 0:00:00]} 43. Nd5 {[%emt 0:00:00] White wants to mate with Qb8+.} Kc8 {[%emt 0:00:00] Against Qb8+} 44. Qc6+ {[%emt 0:00:00]} Kb8 {[%emt 0:00:00]} 45. c3 {[%emt 0:00:00]} Qc8 {[%emt 0:00:00]} 46. Qb6+ {[%emt 0:00:00]} Ka8 {[%emt 0:00:00]} 47. Qxf6 {[%emt 0:00:00]} Rxa6 {[%emt 0:00:00]} 48. Qxg5 {[%emt 0:00:00]} Bxc3 {[%emt 0:00:00]} 49. Rxh4 {[%emt 0:00:00]} Rxh4 {[%emt 0:00:00]} 50. Qxh4 {[%emt 0:00:00] Qh8 is the strong threat.} Rd6 {[%emt 0:00:00]} 51. Qh8 {[%emt 0:00:00] Weighted Error Value: White=0.67/Black=0.48} 1-0

[Event "10th Amsterdam Science Park 2022"]
[Site "Amsterdam"]
[Date "2022.07.22"]
[Round "5.5"]
[White "Bruil, Rembrandt"]
[Black "Pronk, Sven"]
[Result "1-0"]
[ECO "D34"]
[WhiteElo "2204"]
[BlackElo "2105"]
[Annotator "TA"]
[PlyCount "81"]
[EventDate "2022.07.18"]
[EventCountry "NED"]
[SourceTitle "playchess.com"]
[Source "ChessBase"]
[SourceQuality "1"]
[TimeControl "5400+30"]

{[%evp 21,81,21,105,108,104,50,111,121,116,122,117,117,120,67,169,100,159,158,190,189,194,191,263,205,323,330,300,310,291,236,239,245,247,225,233,196,246,243,220,181,166,156,191,166,160,160,160,161,210,192,306,279,260,167,372,365,512,514,818,816,776,596]} 1. Nf3 {[%emt 0:00:03]} d5 {[%emt 0:00:38]} 2. g3 {[%emt 0:00:04]} Nf6 {[%emt 0:00:22]} 3. Bg2 {[%emt 0:00:03]} e6 {[%emt 0:00:30]} 4. O-O {[%emt 0:00:06]} Be7 {[%emt 0:00:59]} 5. c4 {[%emt 0:00:14]} O-O {[%emt 0:00:07]} 6. b3 {[%emt 0:00:20]} c5 {[%emt 0:00:55]} 7. cxd5 {[%emt 0:00:19]} exd5 {[%emt 0:00:09]} 8. d4 {[%emt 0:00:06]} Nc6 {[%emt 0:00:07]} 9. Bb2 {[%emt 0:00:05]} Ne4 {[%emt 0:00:08]} 10. Nc3 {[%emt 0:00:10]} Bf6 {[%emt 0:00:05]} 11. Na4 {[%emt 0:00:35]} b5 {[%emt 0:01:11]} (11... cxd4 $11 {keeps the balance.} 12. Nxd4 Bd7) 12. Nxc5 $16 {[%emt 0:25:29] D34: Tarrasch Defence: 6 g3 Nf6 7 Bg2 Be7.} Nxc5 {[%emt 0:12:43]} 13. Qc2 {[%emt 0:08:19] [#]} ({White should play} 13. Rc1 $16) 13... Nb4 $146 {[%emt 0:25:57]} ({Predecessor:} 13... Nxb3 14. axb3 Qb6 15. e3 Be6 16. Rfc1 Rfc8 17. Qd2 a5 18. Ne5 Nb4 19. Bc3 {½-½ (19) Girard,E (2144)-Charvin,O (2084) Aix les Bains 2003}) 14. Qxc5 {[%emt 0:00:25] White is better.} Be7 {[%emt 0:00:05]} 15. Qc1 {[%emt 0:02:14]} ({Don't go for} 15. Qxb5 $2 a6 16. Qc5 (16. Qa4 $2 Bd7 $19) 16... Bxc5 $19) 15... Bf5 {[%emt 0:04:26]} 16. Qf4 {[%emt 0:29:24]} Be4 {[%emt 0:04:42]} 17. a3 {[%emt 0:11:58]} (17. Qd2 $16) 17... Bd6 {[%emt 0:08:16]} (17... Nc2 $14) 18. Qd2 {[%emt 0:01:00]} (18. Ne5 $18 Bxg2 19. Kxg2) 18... Rc8 {[%emt 0:12:09]} 19. Rac1 {[%emt 0:01:03]} ({Much less strong is} 19. axb4 $6 Rc2 $14) 19... Nc6 {[%emt 0:13:22] [#]} 20. Bh3 $1 $36 {[%emt 0:04:38][%mdl 2048] White is in control.} Rc7 {[%emt 0:03:06]} 21. Ne5 {[%emt 0:00:35]} Na5 {[%emt 0:02:34]} (21... Ne7 $142 22. Rxc7 Bxc7) 22. Rxc7 $18 {[%emt 0:04:32]} Qxc7 {[%emt 0:01:33] [#]} (22... Bxc7 $142 23. Qc3 Bd6) 23. Rc1 $1 {[%emt 0:04:07]} Nxb3 {[%emt 0:01:13]} 24. Rxc7 {[%emt 0:00:05]} Nxd2 {[%emt 0:00:04]} 25. Rxa7 {[%emt 0:00:18][%cal Oe5f7] Threatens to win with Nxf7!} Nc4 {[%emt 0:05:31]} 26. Nxc4 {[%emt 0:05:02]} dxc4 {[%emt 0:00:28]} 27. f3 {[%emt 0:00:20]} Bc2 {[%emt 0:01:43]} 28. Bc3 {[%emt 0:00:29]} Bd1 {[%emt 0:00:46]} (28... Ba4 $142 29. Bd7 Rb8) 29. Kf2 {[%emt 0:00:09]} Ba4 {[%emt 0:00:29]} 30. e4 {[%emt 0:00:25]} Bxa3 {[%emt 0:00:18]} 31. Rb7 {[%emt 0:01:05]} Bd6 {[%emt 0:00:33]} 32. Bd7 {[%emt 0:01:12]} Rb8 {[%emt 0:00:41]} 33. Rxb8+ {[%emt 0:00:14]} Bxb8 $16 {[%emt 0:00:01][%mdl 4096] Endgame KBB-KBB} 34. Bb4 {[%emt 0:00:23]} g5 {[%emt 0:00:30]} (34... Bc7 {keeps fighting.} 35. f4 Bb6) 35. Ke3 $18 {[%emt 0:00:50]} h5 {[%emt 0:00:41]} (35... c3 $142 36. Bxc3 b4) 36. e5 {[%emt 0:01:08]} Kg7 {[%emt 0:00:37]} 37. Ke4 {[%emt 0:00:19] And now d5 would win.} Bb3 $2 {[%emt 0:00:40]} (37... Bc2+ 38. Ke3 Ba4) 38. Bxb5 {[%emt 0:00:16]} h4 {[%emt 0:00:36]} (38... Bc2+ $142 39. Ke3 Bd3) 39. Kf5 {[%emt 0:00:51] White is clearly winning.} Kh6 {[%emt 0:00:33]} (39... Bc7 $142 40. Kxg5 Bb6) 40. gxh4 {[%emt 0:00:33]} gxh4 {[%emt 0:00:13]} 41. Kf6 {[%emt 0:00:00] Weighted Error Value: White=0.14 (very precise) /Black=0.53} 1-0

[Event "10th Amsterdam Science Park 2022"]
[Site "Amsterdam"]
[Date "2022.07.22"]
[Round "5.6"]
[White "Van Arkel, Rogier"]
[Black "Kumar, Prajit Sai"]
[Result "0-1"]
[ECO "B30"]
[WhiteElo "2187"]
[BlackElo "2040"]
[Annotator "TA"]
[PlyCount "52"]
[EventDate "2022.07.18"]
[EventCountry "NED"]
[SourceTitle "playchess.com"]
[Source "ChessBase"]
[SourceQuality "1"]
[TimeControl "5400+30"]

{[%evp 9,52,41,38,45,52,27,28,21,29,0,0,0,0,0,0,0,0,6,10,-17,-15,-357,-368,-460,-456,-501,-476,-493,-481,-637,-635,-700,-626,-696,-702,-735,-729,-690,-673,-1167,-1163,-1095,-679,-993,-984]} 1. e4 {[%emt 0:00:04]} c5 {[%emt 0:00:04]} 2. Nf3 {[%emt 0:00:13]} Nc6 {[%emt 0:00:05]} 3. Bb5 {[%emt 0:00:32]} e5 {[%emt 0:00:50]} 4. O-O {[%emt 0:03:35]} Bd6 {[%emt 0:00:47]} 5. c3 {[%emt 0:02:02]} a6 {[%emt 0:00:31]} 6. Ba4 {[%emt 0:03:39] B30: Sicilian: 2...Nc6 3 Bb5, lines without ...g6.} b5 {[%emt 0:00:41]} 7. Bc2 {[%emt 0:01:31]} Nge7 {[%emt 0:00:53]} 8. a4 {[%emt 0:11:35] Threatens to win with axb5. White has an edge.} b4 {[%emt 0:00:11]} 9. d4 {[%emt 0:07:19]} cxd4 {[%emt 0:05:09]} 10. cxd4 {[%emt 0:00:31] [#]} Nxd4 $146 {[%emt 0:02:57]} ({Predecessor:} 10... exd4 11. Nxd4 Nxd4 12. Qxd4 Qc7 13. h3 a5 14. Bb3 Be5 15. Qc4 Qxc4 16. Bxc4 Bb7 {1-0 (44) Saydaliev,S (2384)-Nigmatov,O (2447) Tashkent 2020}) 11. Nxd4 {[%emt 0:00:16]} exd4 {[%emt 0:00:07]} 12. Nd2 {[%emt 0:08:45][%cal Bb1d2,Bd2f3,Bf3g5][%mdl 32]} Qc7 {[%emt 0:00:44]} 13. Nf3 {[%emt 0:00:35]} O-O {[%emt 0:04:54]} 14. e5 {[%emt 0:16:19]} Bxe5 {[%emt 0:02:19]} 15. Bxh7+ $2 {[%emt 0:09:37][%mdl 8192] White does not recover from this.} Kxh7 $19 {[%emt 0:01:22]} 16. Ng5+ {[%emt 0:00:06]} Kg8 {[%emt 0:06:31] Black is clearly winning.} 17. Qd3 {[%emt 0:05:02][%csl Gg5][%cal Rd3h7] [#]} Ng6 {[%emt 0:03:18]} ({Wrong is} 17... Bxh2+ $2 18. Kh1 Ng6 19. f4 $19) 18. Qh3 {[%emt 0:00:47][%csl Gg5][%cal Rh3h7]} Re8 {[%emt 0:04:30]} 19. Qf3 {[%emt 0:04:14]} d5 {[%emt 0:01:06]} 20. Bd2 {[%emt 0:04:45]} a5 {[%emt 0:02:37]} 21. Rac1 {[%emt 0:00:25]} Qd7 {[%emt 0:00:54]} 22. Qh5 {[%emt 0:00:57]} Ba6 {[%emt 0:03:12]} 23. Rfe1 {[%emt 0:00:54]} Nf8 {[%emt 0:03:13]} 24. Rc6 {[%emt 0:02:11]} g6 {[%emt 0:00:52]} ({Inferior is} 24... Qxc6 25. Qxf7+ Kh8 26. Qh5+ Kg8 27. Qf7+ Kh8 28. Qh5+ Kg8 29. Qf7+ $11) 25. Qf3 {[%emt 0:01:21]} f6 {[%emt 0:05:37]} 26. Rxe5 {[%emt 0:01:17]} Qxc6 {[%emt 0:01:10] Weighted Error Value: White=0.76/Black=0.05 (flawless)} 0-1

[Event "10th Amsterdam Science Park 2022"]
[Site "Amsterdam"]
[Date "2022.07.22"]
[Round "5.7"]
[White "Duchene, Rene"]
[Black "Croese, Cor"]
[Result "1-0"]
[ECO "E61"]
[WhiteElo "2137"]
[BlackElo "2173"]
[Annotator "TA"]
[PlyCount "33"]
[EventDate "2022.07.18"]
[EventCountry "NED"]
[SourceTitle "playchess.com"]
[Source "ChessBase"]
[SourceQuality "1"]
[TimeControl "5400+30"]

{[%evp 16,33,22,14,54,25,39,37,95,6,103,106,113,117,242,160,262,281,902,874]} 1. Nf3 {[%emt 0:00:05]} Nf6 {[%emt 0:00:07]} 2. c4 {[%emt 0:00:10]} g6 {[%emt 0:00:07]} 3. d4 {[%emt 0:00:24]} Bg7 {[%emt 0:00:08]} 4. e3 {[%emt 0:00:12]} O-O {[%emt 0:00:40]} 5. Be2 {[%emt 0:00:20]} d6 {[%emt 0:00:12]} 6. Nc3 {[%emt 0:00:17]} Nbd7 {[%emt 0:00:46]} 7. O-O {[%emt 0:00:17]} e5 {[%emt 0:00:30]} 8. Qc2 {[%emt 0:00:51]} c6 {[%emt 0:08:17]} 9. b3 {[%emt 0:04:18]} Ne8 {[%emt 0:03:31] E61: King's Indian: Early deviations for White, including Smyslov System.} 10. Rd1 {[%emt 0:01:52]} f5 {[%emt 0:02:50]} 11. dxe5 {[%emt 0:01:38]} dxe5 {[%emt 0:01:05] [#]} (11... Nxe5 $14 12. Bb2 Qe7) 12. e4 $146 {[%emt 0:05:28]} (12. Ba3 $16) ({Predecessor:} 12. Ba3 Rf7 13. c5 Kh8 14. Bc4 Rf8 15. Bb2 Qf6 16. b4 e4 17. Nd4 Ne5 18. Bb3 {0-1 (36) Mohd Salem,M-Ceballos Muez,M Al Ain 2013}) 12... f4 {[%emt 0:02:53]} (12... Qe7 $1 $11 {keeps the balance.}) 13. Ba3 $16 {[%emt 0:12:44]} Rf7 {[%emt 0:00:08]} 14. c5 $36 {[%emt 0:00:41][%mdl 2048] White is really pushing. White is more active.} Qa5 {[%emt 0:25:49]} (14... Kh8 $16 15. Rd2 Qe7) 15. Qc1 {[%emt 0:01:38]} b5 {[%emt 0:13:40]} (15... Kh8 $16 {keeps fighting.} 16. Ng5 Rf6) 16. cxb6 $18 {[%emt 0:04:17]} Nxb6 {[%emt 0:00:07] [#]} (16... axb6 17. Bc4 Qxa3) 17. b4 {[%emt 0:01:28] Weighted Error Value: White=0.29 (precise) /Black=0.78} 1-0